[Event "*** Titled Tuesday 3|2 Blitz (Early)"]
[Site "Chess.com"]
[Date "2017.01.03"]
[Round "6"]
[White "FrankieJay"]
[Black "ZhuChenChess"]
[Result "0-1"]
[WhiteElo "2269"]
[BlackElo "2332"]
[TimeControl "180+2"]
[EndTime "12:12:31 PST"]
[Termination "ZhuChenChess won by resignation"]

1. e4 {[%clk 0:03:02]} 1... c5 {[%clk 0:02:58.5]} 2. Nf3 {[%clk 0:03:02.7]} 2...
d6 {[%clk 0:02:59.8]} 3. d4 {[%clk 0:03:03.3]} 3... cxd4 {[%clk 0:03:01.4]} 4.
Nxd4 {[%clk 0:03:05.2]} 4... Nf6 {[%clk 0:03:03.1]} 5. Nc3 {[%clk 0:03:06.8]}
5... a6 {[%clk 0:03:04.8]} 6. Bg5 {[%clk 0:03:08.3]} 6... e6 {[%clk 0:03:05.3]}
7. f4 {[%clk 0:03:09.8]} 7... h6 {[%clk 0:03:05.9]} 8. Bh4 {[%clk 0:03:10.6]}
8... Qb6 {[%clk 0:03:06.9]} 9. a3 {[%clk 0:03:09.6]} 9... Nc6 {[%clk 0:03:07.1]}
10. Bf2 {[%clk 0:03:08.2]} 10... Qc7 {[%clk 0:03:08.3]} 11. Qf3 {[%clk 0:03:03]}
11... Be7 {[%clk 0:03:08.3]} 12. g4 {[%clk 0:03:03.8]} 12... Bd7 {[%clk
0:03:06.3]} 13. O-O-O {[%clk 0:03:04.5]} 13... Nxd4 {[%clk 0:02:58]} 14. Bxd4
{[%clk 0:03:04.1]} 14... e5 {[%clk 0:02:52.4]} 15. fxe5 {[%clk 0:03:02.1]} 15...
dxe5 {[%clk 0:02:37.5]} 16. Qg3 {[%clk 0:02:57.3]} 16... Bd6 {[%clk 0:02:34.9]}
17. Be3 {[%clk 0:02:27.8]} 17... Bxa3 {[%clk 0:02:26.8]} 18. g5 {[%clk
0:02:07.4]} 18... Qxc3 {[%clk 0:02:20.8]} 19. bxa3 {[%clk 0:02:04.5]} 19... Nxe4
{[%clk 0:02:05.9]} 0-1

[Event "*** Titled Tuesday 3|2 Blitz (Early)"]
[Site "Chess.com"]
[Date "2017.01.03"]
[Round "6"]
[White "Andrejkin"]
[Black "162a54f5d"]
[Result "0-1"]
[WhiteElo "2182"]
[BlackElo "2391"]
[TimeControl "180+2"]
[EndTime "12:12:35 PST"]
[Termination "162a54f5d won by resignation"]

1. e4 {[%clk 0:03:02]} 1... d6 {[%clk 0:03:01]} 2. d4 {[%clk 0:03:02.6]} 2...
Nf6 {[%clk 0:03:02.1]} 3. Nc3 {[%clk 0:03:04]} 3... e5 {[%clk 0:03:02.6]} 4. Nf3
{[%clk 0:03:05]} 4... Nbd7 {[%clk 0:03:03.2]} 5. Bc4 {[%clk 0:03:05.9]} 5... Be7
{[%clk 0:03:02.6]} 6. a4 {[%clk 0:03:07.5]} 6... O-O {[%clk 0:02:54.1]} 7. O-O
{[%clk 0:02:56.6]} 7... c6 {[%clk 0:02:51.7]} 8. Re1 {[%clk 0:02:46.1]} 8... a5
{[%clk 0:02:46.9]} 9. h3 {[%clk 0:02:43.7]} 9... Nb6 {[%clk 0:02:46.1]} 10. Bf1
{[%clk 0:02:41.2]} 10... exd4 {[%clk 0:02:36.2]} 11. Nxd4 {[%clk 0:02:43.1]}
11... Re8 {[%clk 0:02:27.6]} 12. Nf5 {[%clk 0:02:35]} 12... Bxf5 {[%clk
0:02:28.2]} 13. exf5 {[%clk 0:02:36.9]} 13... d5 {[%clk 0:02:29.8]} 14. g4
{[%clk 0:02:33.5]} 14... Nfd7 {[%clk 0:02:28.8]} 15. f4 {[%clk 0:02:30.4]} 15...
Bc5+ {[%clk 0:02:27.8]} 16. Kh1 {[%clk 0:02:32]} 16... Qh4 {[%clk 0:02:27.9]}
17. Re2 {[%clk 0:02:26]} 17... Nf6 {[%clk 0:02:17.1]} 18. Bd2 {[%clk 0:02:17.2]}
18... Rxe2 {[%clk 0:01:51.1]} 19. Qxe2 {[%clk 0:02:13]} 19... Re8 {[%clk
0:01:51.9]} 20. Qf3 {[%clk 0:02:13.5]} 20... h5 {[%clk 0:01:49.1]} 21. g5 {[%clk
0:02:10.9]} 21... Ng4 {[%clk 0:01:49.9]} 22. Bd3 {[%clk 0:02:11.1]} 22... Nf2+
{[%clk 0:01:48.9]} 23. Kg1 {[%clk 0:02:10.2]} 23... Nxd3+ {[%clk 0:01:48.6]} 0-1

[Event "*** Titled Tuesday 3|2 Blitz (Early)"]
[Site "Chess.com"]
[Date "2017.01.03"]
[Round "6"]
[White "AlexanderL"]
[Black "petrpalachev"]
[Result "1-0"]
[WhiteElo "2572"]
[BlackElo "2409"]
[TimeControl "180+2"]
[EndTime "12:13:17 PST"]
[Termination "AlexanderL won by resignation"]

1. d4 {[%clk 0:03:01.9]} 1... Nf6 {[%clk 0:03:00.2]} 2. c4 {[%clk 0:03:02.5]}
2... e6 {[%clk 0:03:01.3]} 3. Nc3 {[%clk 0:02:56.2]} 3... Bb4 {[%clk 0:03:01.8]}
4. Qc2 {[%clk 0:02:55.8]} 4... d5 {[%clk 0:03:00]} 5. a3 {[%clk 0:02:55]} 5...
Bxc3+ {[%clk 0:03:00.6]} 6. Qxc3 {[%clk 0:02:56.9]} 6... O-O {[%clk 0:03:00.8]}
7. Nf3 {[%clk 0:02:57.4]} 7... dxc4 {[%clk 0:03:01.7]} 8. Qxc4 {[%clk
0:02:59.3]} 8... b6 {[%clk 0:03:03.2]} 9. Bg5 {[%clk 0:03:00.4]} 9... Ba6 {[%clk
0:03:04.1]} 10. Qa4 {[%clk 0:03:01.6]} 10... Qd7 {[%clk 0:03:04.9]} 11. Qc2
{[%clk 0:03:02.8]} 11... Qc6 {[%clk 0:03:05.6]} 12. Qxc6 {[%clk 0:03:03.4]}
12... Nxc6 {[%clk 0:03:07.5]} 13. Rc1 {[%clk 0:03:04.1]} 13... Bb7 {[%clk
0:03:01.2]} 14. Bxf6 {[%clk 0:03:05.1]} 14... gxf6 {[%clk 0:03:02]} 15. e3
{[%clk 0:03:06.5]} 15... Rfc8 {[%clk 0:03:02.2]} 16. Bb5 {[%clk 0:03:04.7]}
16... Ne7 {[%clk 0:02:58.4]} 17. Bd7 {[%clk 0:03:00.7]} 17... Rd8 {[%clk
0:02:58.3]} 18. Rxc7 {[%clk 0:03:01.1]} 18... Ba6 {[%clk 0:02:29.9]} 19. Bxe6
{[%clk 0:02:28.5]} 19... Kf8 {[%clk 0:02:27.5]} 20. Bh3 {[%clk 0:02:23.1]} 20...
f5 {[%clk 0:02:12.5]} 21. Kd2 {[%clk 0:01:59.4]} 21... Nd5 {[%clk 0:02:10.3]}
22. Rcc1 {[%clk 0:01:59.4]} 22... f4 {[%clk 0:02:11.7]} 23. Ne5 {[%clk
0:01:56.4]} 23... fxe3+ {[%clk 0:02:13.6]} 24. fxe3 {[%clk 0:01:57.4]} 24... Nf6
{[%clk 0:02:14.4]} 25. Bf5 {[%clk 0:01:57.2]} 25... Re8 {[%clk 0:02:07.5]} 26.
Rc7 {[%clk 0:01:55.9]} 26... Re7 {[%clk 0:02:05.2]} 27. Rxe7 {[%clk 0:01:56.6]}
27... Kxe7 {[%clk 0:02:07.1]} 28. Rc1 {[%clk 0:01:57.7]} 28... Nd5 {[%clk
0:02:05.6]} 29. e4 {[%clk 0:01:58.7]} 29... Nf4 {[%clk 0:02:06.3]} 30. Rc7+
{[%clk 0:01:59.3]} 30... Ke8 {[%clk 0:02:06.8]} 31. Rxf7 {[%clk 0:01:59]} 31...
Rd8 {[%clk 0:02:04.1]} 32. Bd7+ {[%clk 0:01:57.3]} 32... Rxd7 {[%clk 0:02:05.3]}
33. Rxd7 {[%clk 0:01:58.4]} 1-0

[Event "*** Titled Tuesday 3|2 Blitz (Early)"]
[Site "Chess.com"]
[Date "2017.01.03"]
[Round "6"]
[White "Gordima"]
[Black "superjem123"]
[Result "0-1"]
[WhiteElo "2468"]
[BlackElo "2477"]
[TimeControl "180+2"]
[EndTime "12:14:09 PST"]
[Termination "superjem123 won by resignation"]

1. c4 {[%clk 0:03:02]} 1... g6 {[%clk 0:02:59.8]} 2. g3 {[%clk 0:03:02.8]} 2...
Bg7 {[%clk 0:02:58.2]} 3. Bg2 {[%clk 0:03:04.2]} 3... c5 {[%clk 0:02:59.8]} 4.
Nc3 {[%clk 0:03:04.5]} 4... Nc6 {[%clk 0:03:01.3]} 5. Nf3 {[%clk 0:03:04.3]}
5... e6 {[%clk 0:03:02.3]} 6. O-O {[%clk 0:03:04.7]} 6... Nge7 {[%clk
0:03:03.8]} 7. e3 {[%clk 0:03:06.2]} 7... Nf5 {[%clk 0:03:03.1]} 8. b3 {[%clk
0:02:50.3]} 8... d5 {[%clk 0:02:54.1]} 9. cxd5 {[%clk 0:02:45.2]} 9... exd5
{[%clk 0:02:56]} 10. Ba3 {[%clk 0:02:46.8]} 10... b6 {[%clk 0:02:44.8]} 11. Nxd5
{[%clk 0:02:44.4]} 11... Qxd5 {[%clk 0:02:42]} 12. Nd4 {[%clk 0:02:44.9]} 12...
Qxg2+ {[%clk 0:02:42.4]} 13. Kxg2 {[%clk 0:02:45.8]} 13... cxd4 {[%clk 0:02:44]}
14. e4 {[%clk 0:02:31.6]} 14... Nfe7 {[%clk 0:02:44.3]} 15. b4 {[%clk
0:02:17.6]} 15... b5 {[%clk 0:02:43.2]} 16. d3 {[%clk 0:02:13]} 16... h5 {[%clk
0:02:43.8]} 17. h4 {[%clk 0:02:11.7]} 17... Be6 {[%clk 0:02:43.7]} 18. Bc1
{[%clk 0:02:03.4]} 18... O-O {[%clk 0:02:37.2]} 19. a4 {[%clk 0:02:01]} 19... a6
{[%clk 0:02:30.7]} 20. Bd2 {[%clk 0:01:58.6]} 20... Ne5 {[%clk 0:02:29.3]} 21.
Qb1 {[%clk 0:01:58.5]} 21... bxa4 {[%clk 0:02:20.5]} 22. Rxa4 {[%clk 0:01:57.3]}
22... Bd7 {[%clk 0:02:21.7]} 23. Ra5 {[%clk 0:01:53.2]} 23... Bb5 {[%clk
0:02:22.2]} 24. Rxb5 {[%clk 0:01:52.9]} 24... axb5 {[%clk 0:02:22.9]} 25. f4
{[%clk 0:01:38.5]} 25... Ng4 {[%clk 0:02:22.3]} 26. f5 {[%clk 0:01:38.8]} 26...
gxf5 {[%clk 0:02:13]} 27. exf5 {[%clk 0:01:32.6]} 27... Nd5 {[%clk 0:02:13.3]}
28. Kh3 {[%clk 0:01:33.7]} 28... Rfe8 {[%clk 0:02:03.9]} 29. Qd1 {[%clk
0:01:30.7]} 29... Ra2 {[%clk 0:02:02.6]} 0-1

[Event "*** Titled Tuesday 3|2 Blitz (Early)"]
[Site "Chess.com"]
[Date "2017.01.03"]
[Round "6"]
[White "Jahonas"]
[Black "Marreuh"]
[Result "0-1"]
[WhiteElo "2118"]
[BlackElo "2098"]
[TimeControl "180+2"]
[EndTime "12:15:04 PST"]
[Termination "Marreuh won by resignation"]

1. d4 {[%clk 0:03:02]} 1... d5 {[%clk 0:03:00.7]} 2. c4 {[%clk 0:03:01.1]} 2...
e6 {[%clk 0:03:01.6]} 3. Nc3 {[%clk 0:03:02.1]} 3... c6 {[%clk 0:03:03]} 4. Nf3
{[%clk 0:03:03]} 4... dxc4 {[%clk 0:03:04.2]} 5. a4 {[%clk 0:03:02.9]} 5... Bb4
{[%clk 0:03:04.5]} 6. e3 {[%clk 0:02:59.8]} 6... b5 {[%clk 0:03:03]} 7. axb5
{[%clk 0:02:59.5]} 7... cxb5 {[%clk 0:03:04.9]} 8. Bd2 {[%clk 0:03:00.7]} 8...
Bxc3 {[%clk 0:03:05.6]} 9. Bxc3 {[%clk 0:02:59.5]} 9... a5 {[%clk 0:03:07.1]}
10. b3 {[%clk 0:02:59.5]} 10... Bb7 {[%clk 0:03:07.9]} 11. bxc4 {[%clk
0:02:56.7]} 11... b4 {[%clk 0:03:09.2]} 12. Bb2 {[%clk 0:02:57.5]} 12... Nf6
{[%clk 0:03:09.6]} 13. Bd3 {[%clk 0:02:54.3]} 13... O-O {[%clk 0:03:09.9]} 14.
O-O {[%clk 0:02:54.6]} 14... Nbd7 {[%clk 0:03:11.3]} 15. Re1 {[%clk 0:02:49.7]}
15... Qc7 {[%clk 0:02:48.2]} 16. e4 {[%clk 0:02:29.7]} 16... e5 {[%clk
0:02:32.9]} 17. Nxe5 {[%clk 0:02:20.9]} 17... Nxe5 {[%clk 0:02:33.3]} 18. dxe5
{[%clk 0:02:21.7]} 18... Nd7 {[%clk 0:02:33.3]} 19. f4 {[%clk 0:02:21.4]} 19...
Nc5 {[%clk 0:02:19.8]} 20. Bc2 {[%clk 0:02:10.8]} 20... Rfd8 {[%clk 0:02:14.8]}
21. Qg4 {[%clk 0:02:07]} 21... b3 {[%clk 0:02:02.1]} 22. Bb1 {[%clk 0:02:02.9]}
22... a4 {[%clk 0:01:55.1]} 23. f5 {[%clk 0:01:59]} 23... a3 {[%clk 0:01:20.7]}
24. Bc3 {[%clk 0:01:51.2]} 24... b2 {[%clk 0:01:15]} 25. e6 {[%clk 0:01:49.1]}
25... f6 {[%clk 0:01:08.7]} 26. Ra2 {[%clk 0:01:48.2]} 26... Nd3 {[%clk
0:01:03.6]} 27. Bxd3 {[%clk 0:01:36.3]} 27... Rxd3 {[%clk 0:01:03.8]} 28. Bxf6
{[%clk 0:01:36.7]} 28... Rb3 {[%clk 0:00:49.8]} 29. e7 {[%clk 0:01:32]} 29...
Qb6+ {[%clk 0:00:50.8]} 30. Kh1 {[%clk 0:01:19.9]} 30... Qxf6 {[%clk 0:00:51.6]}
31. Rxa3 {[%clk 0:01:19.6]} 31... Rbxa3 {[%clk 0:00:49.7]} 32. e5 {[%clk
0:01:19.2]} 32... Ra1 {[%clk 0:00:48.4]} 0-1

[Event "*** Titled Tuesday 3|2 Blitz (Early)"]
[Site "Chess.com"]
[Date "2017.01.03"]
[Round "6"]
[White "NewBornNow"]
[Black "Quiet_Desperation"]
[Result "1-0"]
[WhiteElo "2567"]
[BlackElo "2362"]
[TimeControl "180+2"]
[EndTime "12:15:46 PST"]
[Termination "NewBornNow won by resignation"]

1. d4 {[%clk 0:03:02]} 1... Nf6 {[%clk 0:02:59.8]} 2. c4 {[%clk 0:03:02.8]} 2...
e6 {[%clk 0:03:01.4]} 3. Nf3 {[%clk 0:03:02.7]} 3... Bb4+ {[%clk 0:03:01.3]} 4.
Bd2 {[%clk 0:03:03.1]} 4... Qe7 {[%clk 0:03:02.5]} 5. Nc3 {[%clk 0:02:58.6]}
5... O-O {[%clk 0:02:56.2]} 6. g3 {[%clk 0:02:59.6]} 6... Nc6 {[%clk 0:02:55.2]}
7. Bg2 {[%clk 0:02:58.4]} 7... Bxc3 {[%clk 0:02:56.3]} 8. Bxc3 {[%clk
0:02:59.3]} 8... Ne4 {[%clk 0:02:57.5]} 9. Rc1 {[%clk 0:03:00.3]} 9... Nxc3
{[%clk 0:02:58.6]} 10. Rxc3 {[%clk 0:03:00.6]} 10... d6 {[%clk 0:02:57.4]} 11.
O-O {[%clk 0:03:00.8]} 11... e5 {[%clk 0:02:56.8]} 12. d5 {[%clk 0:03:02]} 12...
Nb8 {[%clk 0:02:55]} 13. Nd2 {[%clk 0:03:02.9]} 13... a5 {[%clk 0:02:43.5]} 14.
c5 {[%clk 0:03:03.7]} 14... Na6 {[%clk 0:02:43.9]} 15. cxd6 {[%clk 0:03:02.2]}
15... cxd6 {[%clk 0:02:44.8]} 16. Nc4 {[%clk 0:03:03.2]} 16... Bf5 {[%clk
0:02:35.1]} 17. Nxa5 {[%clk 0:02:43.1]} 17... Nb4 {[%clk 0:02:08.7]} 18. Rc4
{[%clk 0:02:27.4]} 18... Rxa5 {[%clk 0:02:08.1]} 19. Rxb4 {[%clk 0:02:27.7]}
19... Rxa2 {[%clk 0:01:58.2]} 20. Qb3 {[%clk 0:02:26.3]} 20... Ra7 {[%clk
0:01:59.1]} 21. Rc1 {[%clk 0:02:15.5]} 21... h6 {[%clk 0:01:53.7]} 22. e4 {[%clk
0:02:14.8]} 22... Bg6 {[%clk 0:01:51.6]} 23. Rbc4 {[%clk 0:02:12.2]} 23... f5
{[%clk 0:01:31.9]} 24. Rc7 {[%clk 0:02:08]} 24... Qf6 {[%clk 0:01:33]} 25. Qb6
{[%clk 0:01:56.9]} 25... Ra2 {[%clk 0:01:25.7]} 26. Rxb7 {[%clk 0:01:50.7]}
26... f4 {[%clk 0:01:25.5]} 27. h4 {[%clk 0:01:23.7]} 27... f3 {[%clk
0:01:16.7]} 28. Bh3 {[%clk 0:01:22.7]} 28... Bxe4 {[%clk 0:01:17.9]} 29. Rcc7
{[%clk 0:01:17.4]} 29... Ra1+ {[%clk 0:00:46.5]} 30. Kh2 {[%clk 0:01:17.1]}
30... Bd3 {[%clk 0:00:40.3]} 31. Rxg7+ {[%clk 0:01:12]} 31... Kh8 {[%clk
0:00:36.8]} 32. Qc7 {[%clk 0:01:03.7]} 1-0

[Event "*** Titled Tuesday 3|2 Blitz (Early)"]
[Site "Chess.com"]
[Date "2017.01.03"]
[Round "6"]
[White "Mischuk_D"]
[Black "OparinGrigoriy"]
[Result "1-0"]
[WhiteElo "2474"]
[BlackElo "2564"]
[TimeControl "180+2"]
[EndTime "12:16:05 PST"]
[Termination "Mischuk_D won by checkmate"]

1. d4 {[%clk 0:03:02]} 1... Nf6 {[%clk 0:03:00.7]} 2. c4 {[%clk 0:03:03.1]} 2...
e6 {[%clk 0:03:02.2]} 3. Nc3 {[%clk 0:03:04.2]} 3... Bb4 {[%clk 0:03:03.1]} 4.
e3 {[%clk 0:03:05.4]} 4... O-O {[%clk 0:03:02.8]} 5. Ne2 {[%clk 0:03:06.5]} 5...
d5 {[%clk 0:03:03.7]} 6. a3 {[%clk 0:03:07.2]} 6... Bd6 {[%clk 0:03:05.4]} 7.
Ng3 {[%clk 0:03:07]} 7... b6 {[%clk 0:03:06]} 8. cxd5 {[%clk 0:03:07.4]} 8...
exd5 {[%clk 0:03:06.2]} 9. Bd3 {[%clk 0:03:08.3]} 9... c5 {[%clk 0:03:07.5]} 10.
O-O {[%clk 0:03:09.2]} 10... Nc6 {[%clk 0:03:08.9]} 11. dxc5 {[%clk 0:03:01.2]}
11... bxc5 {[%clk 0:03:10.1]} 12. b4 {[%clk 0:02:45.8]} 12... c4 {[%clk
0:03:10]} 13. Bc2 {[%clk 0:02:46.5]} 13... Bg4 {[%clk 0:03:09.5]} 14. Qd2 {[%clk
0:02:42.9]} 14... Re8 {[%clk 0:03:06.2]} 15. Bb2 {[%clk 0:02:43.1]} 15... Be6
{[%clk 0:03:05.9]} 16. Nb5 {[%clk 0:02:42]} 16... Bxg3 {[%clk 0:03:00.8]} 17.
hxg3 {[%clk 0:02:41.3]} 17... Ng4 {[%clk 0:03:02.3]} 18. f3 {[%clk 0:02:35.6]}
18... Nge5 {[%clk 0:02:53.1]} 19. Nd4 {[%clk 0:02:33.8]} 19... Qe7 {[%clk
0:02:41.4]} 20. g4 {[%clk 0:02:29.3]} 20... Rac8 {[%clk 0:02:39.2]} 21. Bc3
{[%clk 0:02:27.8]} 21... Nxd4 {[%clk 0:02:38.3]} 22. Qxd4 {[%clk 0:02:26.5]}
22... f6 {[%clk 0:02:39.7]} 23. Rfe1 {[%clk 0:02:24.3]} 23... Bf7 {[%clk
0:02:38]} 24. b5 {[%clk 0:02:21.4]} 24... Qd7 {[%clk 0:02:32.5]} 25. a4 {[%clk
0:02:21.1]} 25... Bg6 {[%clk 0:02:33]} 26. Bxg6 {[%clk 0:02:05.6]} 26... hxg6
{[%clk 0:02:33.6]} 27. e4 {[%clk 0:02:04.3]} 27... dxe4 {[%clk 0:02:34.3]} 28.
Rxe4 {[%clk 0:02:01.5]} 28... Qxd4+ {[%clk 0:02:34.6]} 29. Rxd4 {[%clk 0:01:59]}
29... Re7 {[%clk 0:02:32.3]} 30. Kh2 {[%clk 0:01:52.9]} 30... Kf7 {[%clk
0:02:32.3]} 31. Kg3 {[%clk 0:01:53.8]} 31... Nd3 {[%clk 0:02:32.7]} 32. a5
{[%clk 0:01:50.1]} 32... Rc5 {[%clk 0:02:31.8]} 33. Rb1 {[%clk 0:01:34.4]} 33...
Rb7 {[%clk 0:02:30]} 34. b6 {[%clk 0:01:35.4]} 34... axb6 {[%clk 0:02:27.9]} 35.
a6 {[%clk 0:01:34.1]} 35... Re7 {[%clk 0:02:18.3]} 36. Rxb6 {[%clk 0:01:33.4]}
36... Ne5 {[%clk 0:02:19.9]} 37. Rdd6 {[%clk 0:01:29.6]} 37... Rcc7 {[%clk
0:02:14.9]} 38. g5 {[%clk 0:01:26.1]} 38... fxg5 {[%clk 0:02:13]} 39. Rb7 {[%clk
0:01:00.8]} 39... Rxb7 {[%clk 0:01:49.4]} 40. axb7 {[%clk 0:01:01.1]} 40... Rxb7
{[%clk 0:01:51.3]} 41. Bxe5 {[%clk 0:01:01.7]} 41... Rb5 {[%clk 0:01:50.6]} 42.
Bd4 {[%clk 0:01:00.5]} 42... Rb3 {[%clk 0:01:51.4]} 43. Rc6 {[%clk 0:01:01.1]}
43... Rb4 {[%clk 0:01:52.5]} 44. Bc3 {[%clk 0:01:00.2]} 44... Ra4 {[%clk
0:01:54]} 45. Kg4 {[%clk 0:01:00.9]} 45... Ra2 {[%clk 0:01:54.9]} 46. g3 {[%clk
0:01:01.1]} 46... Ra4 {[%clk 0:01:56.1]} 47. Kxg5 {[%clk 0:01:00.3]} 47... Ra3
{[%clk 0:01:57.5]} 48. Rxc4 {[%clk 0:01:00.4]} 48... Ra7 {[%clk 0:01:54.9]} 49.
Be5 {[%clk 0:00:59.8]} 49... Re7 {[%clk 0:01:55.1]} 50. Rc7 {[%clk 0:00:59]}
50... Rxc7 {[%clk 0:01:53.8]} 51. Bxc7 {[%clk 0:00:59.8]} 51... Kg8 {[%clk
0:01:55.7]} 52. Kxg6 {[%clk 0:01:00.5]} 52... Kh8 {[%clk 0:01:57.6]} 53. Be5
{[%clk 0:01:00.9]} 53... Kg8 {[%clk 0:01:59.5]} 54. g4 {[%clk 0:01:01.9]} 54...
Kh8 {[%clk 0:02:01.3]} 55. Bxg7+ {[%clk 0:01:02.8]} 55... Kg8 {[%clk 0:02:03.2]}
56. Bh6 {[%clk 0:01:03.5]} 56... Kh8 {[%clk 0:02:04.3]} 57. f4 {[%clk
0:01:04.4]} 57... Kg8 {[%clk 0:02:06.2]} 58. f5 {[%clk 0:01:05.4]} 58... Kh8
{[%clk 0:02:08.1]} 59. f6 {[%clk 0:01:06.3]} 59... Kg8 {[%clk 0:02:10]} 60. f7+
{[%clk 0:01:07.2]} 60... Kh8 {[%clk 0:02:11.9]} 61. f8=Q# {[%clk 0:01:08.1]} 1-0

[Event "*** Titled Tuesday 3|2 Blitz (Early)"]
[Site "Chess.com"]
[Date "2017.01.03"]
[Round "6"]
[White "FearlessKing64"]
[Black "jup1978"]
[Result "0-1"]
[WhiteElo "2077"]
[BlackElo "2246"]
[TimeControl "180+2"]
[EndTime "12:16:21 PST"]
[Termination "jup1978 won on time"]

1. e4 {[%clk 0:03:02]} 1... e6 {[%clk 0:03:00.1]} 2. d4 {[%clk 0:03:02.2]} 2...
d5 {[%clk 0:03:01.4]} 3. Nd2 {[%clk 0:03:02.5]} 3... Nf6 {[%clk 0:03:00.3]} 4.
e5 {[%clk 0:03:03.6]} 4... Nfd7 {[%clk 0:03:01.5]} 5. f4 {[%clk 0:03:04.7]} 5...
c5 {[%clk 0:03:01.4]} 6. c3 {[%clk 0:03:06.1]} 6... Nc6 {[%clk 0:03:00.9]} 7.
Ndf3 {[%clk 0:03:07.7]} 7... cxd4 {[%clk 0:02:54.5]} 8. cxd4 {[%clk 0:03:07.6]}
8... Bb4+ {[%clk 0:02:55.6]} 9. Bd2 {[%clk 0:03:08.1]} 9... Qa5 {[%clk
0:02:53.1]} 10. a3 {[%clk 0:02:49.5]} 10... Bxd2+ {[%clk 0:02:53.5]} 11. Qxd2
{[%clk 0:02:50.9]} 11... Qxd2+ {[%clk 0:02:54.3]} 12. Kxd2 {[%clk 0:02:52.8]}
12... a6 {[%clk 0:02:55.3]} 13. Rd1 {[%clk 0:02:32.3]} 13... O-O {[%clk
0:02:54]} 14. Bd3 {[%clk 0:02:28.6]} 14... h6 {[%clk 0:02:53.1]} 15. Ne2 {[%clk
0:02:25.7]} 15... f6 {[%clk 0:02:53]} 16. Ke3 {[%clk 0:02:18.7]} 16... fxe5
{[%clk 0:02:51.9]} 17. fxe5 {[%clk 0:02:19.3]} 17... Nb6 {[%clk 0:02:51.1]} 18.
b3 {[%clk 0:02:14.8]} 18... Bd7 {[%clk 0:02:51.7]} 19. Rhf1 {[%clk 0:02:02]}
19... Be8 {[%clk 0:02:49]} 20. Nf4 {[%clk 0:01:54.5]} 20... Bd7 {[%clk
0:02:48.7]} 21. Ng6 {[%clk 0:01:48.1]} 21... Rf7 {[%clk 0:02:47.9]} 22. Nfh4
{[%clk 0:01:30.2]} 22... Be8 {[%clk 0:02:42.1]} 23. Nf3 {[%clk 0:01:02.7]} 23...
Ne7 {[%clk 0:02:32.4]} 24. Nxe7+ {[%clk 0:00:58.1]} 24... Rxe7 {[%clk
0:02:32.7]} 25. g4 {[%clk 0:00:54.9]} 25... Rc8 {[%clk 0:02:32.6]} 26. Rc1
{[%clk 0:00:55.4]} 26... Rec7 {[%clk 0:02:32.2]} 27. Kd2 {[%clk 0:00:56.5]}
27... Rxc1 {[%clk 0:02:31.6]} 28. Rxc1 {[%clk 0:00:58.4]} 28... Rxc1 {[%clk
0:02:32.4]} 29. Kxc1 {[%clk 0:00:59.8]} 29... Kf8 {[%clk 0:02:29.7]} 30. Kd2
{[%clk 0:01:00.4]} 30... Ke7 {[%clk 0:02:30.2]} 31. Kc3 {[%clk 0:01:01.9]} 31...
Nd7 {[%clk 0:02:22.7]} 32. Kb4 {[%clk 0:00:57.6]} 32... Kd8 {[%clk 0:02:19.2]}
33. Ka5 {[%clk 0:00:47.6]} 33... Kc7 {[%clk 0:02:19.4]} 34. a4 {[%clk
0:00:36.5]} 34... Nb8 {[%clk 0:02:20.6]} 35. Kb4 {[%clk 0:00:32.7]} 35... Nc6+
{[%clk 0:02:21.3]} 36. Kc3 {[%clk 0:00:31.1]} 36... Ne7 {[%clk 0:02:18.1]} 37.
Kb4 {[%clk 0:00:29.9]} 37... a5+ {[%clk 0:02:07.5]} 38. Kc3 {[%clk 0:00:31.1]}
38... Bg6 {[%clk 0:02:04.5]} 39. Bb5 {[%clk 0:00:28.2]} 39... Be4 {[%clk
0:02:02.7]} 40. Nh4 {[%clk 0:00:27.9]} 40... g5 {[%clk 0:01:59.7]} 41. Nf5
{[%clk 0:00:08.6]} 41... exf5 {[%clk 0:01:59.5]} 42. gxf5 {[%clk 0:00:10.1]}
42... Bxf5 {[%clk 0:01:59.5]} 43. b4 {[%clk 0:00:08.7]} 43... b6 {[%clk
0:01:59.2]} 44. bxa5 {[%clk 0:00:09.1]} 44... bxa5 {[%clk 0:02:01.1]} 45. Be2
{[%clk 0:00:10.7]} 45... Bd7 {[%clk 0:01:58.5]} 46. Bf3 {[%clk 0:00:10.5]} 46...
Bxa4 {[%clk 0:01:57.6]} 0-1